{"text_format":"3","workbook":"xlsx","n_sheets":2,"sheets":["Gastos","Categoría"],"not_rendered":{"defined_names":5},"read":"whole","date_system":"1900"}

{"sheet":"Gastos","index":0,"n_rows":25,"n_cols":7,"rows_kept":25,"merged":[[0,1,0,5],[1,1,1,5]]}
[null,"PRESUPUESTO DE GASTOS",{"$nulls":4},{"$f":"TODAY()","v":{"v":44578,"d":"4457800.00%"}}]
[null,"Nombre de la empresa"]
[null,"Gasto","Categoría","Presupuesto","Real","Diferencia ($)","Diferencia (%)"]
[null,"Publicidad","Operación",null,null,{"$f":"IFERROR(SUM(Gastos[[#This Row],[Presupuesto]]-Gastos[[#This Row],[Real]]), \"\")","v":0},{"$f":"IFERROR(SUM(Gastos[[#This Row],[Diferencia ($)]]/Gastos[[#This Row],[Presupuesto]]),\"\")","v":""}]
[null,"Deudas","Operación",null,null,{"$f":"IFERROR(SUM(Gastos[[#This Row],[Presupuesto]]-Gastos[[#This Row],[Real]]), \"\")","v":0},{"$f":"IFERROR(SUM(Gastos[[#This Row],[Diferencia ($)]]/Gastos[[#This Row],[Presupuesto]]),\"\")","v":""}]
[null,"Beneficios","Operación",null,null,{"$f":"IFERROR(SUM(Gastos[[#This Row],[Presupuesto]]-Gastos[[#This Row],[Real]]), \"\")","v":0},{"$f":"IFERROR(SUM(Gastos[[#This Row],[Diferencia ($)]]/Gastos[[#This Row],[Presupuesto]]),\"\")","v":""}]
[null,"Suministros","Operación",null,null,{"$f":"IFERROR(SUM(Gastos[[#This Row],[Presupuesto]]-Gastos[[#This Row],[Real]]), \"\")","v":0},{"$f":"IFERROR(SUM(Gastos[[#This Row],[Diferencia ($)]]/Gastos[[#This Row],[Presupuesto]]),\"\")","v":""}]
[null,"Gastos de envío","Operación",null,null,{"$f":"IFERROR(SUM(Gastos[[#This Row],[Presupuesto]]-Gastos[[#This Row],[Real]]), \"\")","v":0},{"$f":"IFERROR(SUM(Gastos[[#This Row],[Diferencia ($)]]/Gastos[[#This Row],[Presupuesto]]),\"\")","v":""}]
[null,"Renta o hipoteca","Operación",null,null,{"$f":"IFERROR(SUM(Gastos[[#This Row],[Presupuesto]]-Gastos[[#This Row],[Real]]), \"\")","v":0},{"$f":"IFERROR(SUM(Gastos[[#This Row],[Diferencia ($)]]/Gastos[[#This Row],[Presupuesto]]),\"\")","v":""}]
[null,"Gastos de ventas","Operación",null,null,{"$f":"IFERROR(SUM(Gastos[[#This Row],[Presupuesto]]-Gastos[[#This Row],[Real]]), \"\")","v":0},{"$f":"IFERROR(SUM(Gastos[[#This Row],[Diferencia ($)]]/Gastos[[#This Row],[Presupuesto]]),\"\")","v":""}]
[null,"Impuestos","Operación",null,null,{"$f":"IFERROR(SUM(Gastos[[#This Row],[Presupuesto]]-Gastos[[#This Row],[Real]]), \"\")","v":0},{"$f":"IFERROR(SUM(Gastos[[#This Row],[Diferencia ($)]]/Gastos[[#This Row],[Presupuesto]]),\"\")","v":""}]
[null,"Servicios públicos","Operación",null,null,{"$f":"IFERROR(SUM(Gastos[[#This Row],[Presupuesto]]-Gastos[[#This Row],[Real]]), \"\")","v":0},{"$f":"IFERROR(SUM(Gastos[[#This Row],[Diferencia ($)]]/Gastos[[#This Row],[Presupuesto]]),\"\")","v":""}]
[null,"Otros","Operación",null,null,{"$f":"IFERROR(SUM(Gastos[[#This Row],[Presupuesto]]-Gastos[[#This Row],[Real]]), \"\")","v":0},{"$f":"IFERROR(SUM(Gastos[[#This Row],[Diferencia ($)]]/Gastos[[#This Row],[Presupuesto]]),\"\")","v":""}]
[null,"Seguro","Operación",null,null,{"$f":"IFERROR(SUM(Gastos[[#This Row],[Presupuesto]]-Gastos[[#This Row],[Real]]), \"\")","v":0},{"$f":"IFERROR(SUM(Gastos[[#This Row],[Diferencia ($)]]/Gastos[[#This Row],[Presupuesto]]),\"\")","v":""}]
[null,"Interés","Operación",null,null,{"$f":"IFERROR(SUM(Gastos[[#This Row],[Presupuesto]]-Gastos[[#This Row],[Real]]), \"\")","v":0},{"$f":"IFERROR(SUM(Gastos[[#This Row],[Diferencia ($)]]/Gastos[[#This Row],[Presupuesto]]),\"\")","v":""}]
[null,"Teléfono","Operación",null,null,{"$f":"IFERROR(SUM(Gastos[[#This Row],[Presupuesto]]-Gastos[[#This Row],[Real]]), \"\")","v":0},{"$f":"IFERROR(SUM(Gastos[[#This Row],[Diferencia ($)]]/Gastos[[#This Row],[Presupuesto]]),\"\")","v":""}]
[null,"Mantenimiento y reparaciones","Operación",null,null,{"$f":"IFERROR(SUM(Gastos[[#This Row],[Presupuesto]]-Gastos[[#This Row],[Real]]), \"\")","v":0},{"$f":"IFERROR(SUM(Gastos[[#This Row],[Diferencia ($)]]/Gastos[[#This Row],[Presupuesto]]),\"\")","v":""}]
[null,"Gastos legales","Operación",null,null,{"$f":"IFERROR(SUM(Gastos[[#This Row],[Presupuesto]]-Gastos[[#This Row],[Real]]), \"\")","v":0},{"$f":"IFERROR(SUM(Gastos[[#This Row],[Diferencia ($)]]/Gastos[[#This Row],[Presupuesto]]),\"\")","v":""}]
[null,"Depreciación","Operación",null,null,{"$f":"IFERROR(SUM(Gastos[[#This Row],[Presupuesto]]-Gastos[[#This Row],[Real]]), \"\")","v":0},{"$f":"IFERROR(SUM(Gastos[[#This Row],[Diferencia ($)]]/Gastos[[#This Row],[Presupuesto]]),\"\")","v":""}]
[null,"Envío","Operación",null,null,{"$f":"IFERROR(SUM(Gastos[[#This Row],[Presupuesto]]-Gastos[[#This Row],[Real]]), \"\")","v":0},{"$f":"IFERROR(SUM(Gastos[[#This Row],[Diferencia ($)]]/Gastos[[#This Row],[Presupuesto]]),\"\")","v":""}]
[null,"Almacenamiento","Operación",null,null,{"$f":"IFERROR(SUM(Gastos[[#This Row],[Presupuesto]]-Gastos[[#This Row],[Real]]), \"\")","v":0},{"$f":"IFERROR(SUM(Gastos[[#This Row],[Diferencia ($)]]/Gastos[[#This Row],[Presupuesto]]),\"\")","v":""}]
[null,"Tienda","Personal",null,null,{"$f":"IFERROR(SUM(Gastos[[#This Row],[Presupuesto]]-Gastos[[#This Row],[Real]]), \"\")","v":0},{"$f":"IFERROR(SUM(Gastos[[#This Row],[Diferencia ($)]]/Gastos[[#This Row],[Presupuesto]]),\"\")","v":""}]
[null,"Vendedores","Personal",null,null,{"$f":"IFERROR(SUM(Gastos[[#This Row],[Presupuesto]]-Gastos[[#This Row],[Real]]), \"\")","v":0},{"$f":"IFERROR(SUM(Gastos[[#This Row],[Diferencia ($)]]/Gastos[[#This Row],[Presupuesto]]),\"\")","v":""}]
[null,"Otros","Personal",null,null,{"$f":"IFERROR(SUM(Gastos[[#This Row],[Presupuesto]]-Gastos[[#This Row],[Real]]), \"\")","v":0},{"$f":"IFERROR(SUM(Gastos[[#This Row],[Diferencia ($)]]/Gastos[[#This Row],[Presupuesto]]),\"\")","v":""}]
[null,"Gastos totales",null,{"$f":"IFERROR(SUM(Gastos[Presupuesto]), \"\")","v":0},{"$f":"IFERROR(SUM(Gastos[Real]), \"\")","v":0},{"$f":"IFERROR(SUM(Gastos[Diferencia ($)]), \"\")","v":0},{"$f":"IFERROR(SUM(Gastos[[#Totals],[Diferencia ($)]]/Gastos[[#Totals],[Presupuesto]]),\"\")","v":""}]

{"sheet":"Categoría","index":1,"n_rows":4,"n_cols":2,"rows_kept":4}
[null,"Búsqueda de categoría"]
[null,"Categoría"]
[null,"Operación"]
[null,"Personal"]